[Event "57th Biel Festival MTO 2024"]
[White "Xue,Haowen"]
[Black "Arsenie,Cristian Marc"]
[Site "Biel"]
[Round "1.23"]
[Annotator "TA"]
[Result "1-0"]
[Date "2024.07.15"]
[WhiteElo "2452"]
[BlackElo "2121"]
[PlyCount "75"]
[TimeControl "60"]

{[%evp 10,75,37,18,25,17,15,34,5,20,22,23,20,12,18,24,29,17,32,32,30,25,34,32,28,32,32,35,67,61,64,53,167,175,158,152,193,163,184,206,245,248,251,268,265,254,383,409,439,397,466,447,461,454,456,437,460,443,795,813,1011,933,1098,1089,3331,2070,3129,2838]} 1. c4 {[%emt 0:0:2]} Nf6 {[%emt 0:0:16]} 2. Nf3 {[%emt 0:0:5]} e6 {[%emt 0:0:18]} 3. g3 {[%emt 0:0:5]} d5 {[%emt 0:0:6]} 4. Bg2 {[%emt 0:0:5]} d4 {[%emt 0:0:13]} 5. O-O {[%emt 0:0:9]} Nc6 {[%emt 0:0:10]} 6. d3 {[%emt 0:0:30]} Bc5 {[%emt 0:0:8]} 7. Nbd2 {[%emt 0:0:29]} a5 {[%emt 0:0:17][%cal Ba7a5,Ba5a4,Ba4a3][%mdl 32]} 8. Nb3 {[%emt 0:0:58] Verhindert e5} Be7 {[%emt 0:0:17] Weiß steht etwas besser.} 9. e3 {[%emt 0:0:24]} dxe3 {[%emt 0:0:22]} 10. Bxe3 {[%emt 0:0:5]} Ng4 {[%emt 0:0:10]} 11. Bc5 {[%emt 0:2:26]} O-O {[%emt 0:0:16]} 12. d4 {[%emt 0:2:27]} a4 {[%emt 0:0:40]} 13. Bxe7 {[%emt 0:0:6]} Qxe7 {[%emt 0:0:9]} 14. Nc5 {[%emt 0:0:12]} a3 {[%emt 0:0:8] [#]} 15. b4 $1 {[%emt 0:6:40]} Nxb4 {[%emt 0:0:56]} 16. Rb1 {[%emt 0:1:18]} b6 {[%emt 0:0:56]} 17. Rxb4 {[%emt 0:0:26]} bxc5 {[%emt 0:0:8]} 18. Rb5 {[%emt 0:0:8]} Ba6 {[%emt 0:0:21]} (18... cxd4 $2 19. Nxd4 Nxf2 20. Rxf2 $18 (20. Nc6 Qe8 $18 ))19. Rxc5 {[%emt 0:0:30] Nd2 wäre nun fies.} Bb7 {[%emt 0:0:7]} 20. Qb1 {[%emt 0:8:59]} Rab8 {[%emt 0:19:30] [#] Weiß verwandelt nun seinen Vorteil.} (20... Bxf3 $1 $14 21. Bxf3 Rab8 )21. Rb5 $1 $18 {[%emt 0:2:54]} (21. Ng5 f5 22. Rb5 (22. Bxb7 Qxg5 23. h3 Nxf2 $11 )Bxg2 23. Rxb8 Bxf1 24. Rxf8+ Qxf8 )c6 {[%emt 0:4:22]} 22. Rb3 $40 {[%emt 0:1:46][%mdl 128] Schwarz ist in Schwierigkeiten.} Rfd8 {[%emt 0:8:49]} 23. c5 {[%emt 0:3:39][%cal Bc4c5,Bc5b6][%mdl 32]} Qc7 {[%emt 0:8:48]} 24. Qd3 {[%emt 0:6:17] Gegen Ba6 gerichtet.} (24. Rxa3 Ba6 25. Rxa6 Rxb1 26. Rxb1 e5 $16 )Nh6 {[%emt 0:8:4][%cal Bg4h6,Bh6f5,Bf5d4][%mdl 32]} 25. Rfb1 {[%emt 0:3:13]} (25. Rxa3 Nf5 26. Rb1 Bc8 27. Rxb8 Qxb8 )Nf5 {[%emt 0:2:1]} 26. Rb6 {[%emt 0:1:41][%cal Od3b3] Droht stark Qb3!} ({Finger weg von} 26. Rxa3 Bc8 27. Rxb8 Qxb8 )Ba8 {[%emt 0:5:12]} 27. Qxa3 {[%emt 0:2:20]} Rxb6 {[%emt 0:1:46]} (27... Rbc8 $142 28. Ra6 Rf8 )28. cxb6 {[%emt 0:1:0]} Qb7 {[%emt 0:1:28]} 29. h4 {[%emt 0:12:9]} g6 {[%emt 0:4:3]} 30. Ne5 {[%emt 0:2:8] Weiß steht klar auf Gewinn.} Nxd4 {[%emt 0:1:43]} 31. Qc5 {[%emt 0:0:24]} f6 {[%emt 0:2:43]} 32. Nc4 {[%emt 0:2:24]} Qd7 {[%emt 0:1:39]} 33. Na5 {[%emt 0:6:6] Und jetzt b7 wäre schön.} Bb7 {[%emt 0:0:23]} (33... Rb8 $142 34. a4 e5 )34. a4 {[%emt 0:1:42][%cal Ba2a4,Ba4a5][%mdl 32]} e5 {[%emt 0:2:11]} 35. Nxb7 {[%emt 0:1:39]} Qxb7 {[%emt 0:0:7]} 36. a5 {[%emt 0:0:43]} Qa6 {[%emt 0:3:49]} 37. b7 {[%emt 0:1:10]} Rb8 {[%emt 0:0:51]} 38. Qb6 {[%emt 0:1:53] Gewichteter Fehlerwert: Weiß=0.04 (makellos) /Schwarz=0.22 (präzise) .  Fehler:       	---       	Schwarz=3     Ungenau:       	---       	Schwarz=1     OK:         	Weiß=20    	Schwarz=12    Bester:       	Weiß=1     	Schwarz=2     Stark:        	Weiß=1     	---} 1-0

[Event "57th Biel Festival MTO 2024"]
[White "Harish,Neeraj"]
[Black "Holzke,Frank"]
[Site "Biel"]
[Round "1.24"]
[Annotator "TA"]
[Result "0-1"]
[Date "2024.07.15"]
[WhiteElo "2123"]
[BlackElo "2450"]
[PlyCount "96"]
[TimeControl "60"]

{[%evp 10,96,52,8,74,14,7,11,10,-22,-14,-13,-7,-35,-27,-47,-25,-19,-6,-47,-7,-21,-17,-123,-138,-155,-106,-85,-84,-194,-27,-16,-19,-17,-14,-41,0,-36,-29,-43,-32,-25,-29,-60,-56,-90,-92,-91,-91,-89,-88,-86,-74,-71,-77,-80,-80,-84,-59,-65,-58,-1213,-1213,-1213,-1213,-1213,-1213,-1213,-1213,-29968,-29969,-29969,-29970,-29970,-29971,-29971,-29972,-29972,-29973,-29973,-29974,-29974,-29974,-29970,-7375,-6170,-5979,-29984,-29985]} 1. e4 {[%emt 0:0:4]} e6 {[%emt 0:0:34]} 2. d4 {[%emt 0:0:16]} a6 {[%emt 0:0:14]} 3. Nf3 {[%emt 0:0:48]} d5 {[%emt 0:0:36]} 4. e5 {[%emt 0:0:23]} c5 {[%emt 0:0:31]} 5. c3 {[%emt 0:0:38]} Bd7 {[%emt 0:0:18]} 6. Be2 {[%emt 0:4:3]} Bb5 {[%emt 0:2:10]} (6... Nc6 $11 )7. O-O {[%emt 0:0:37]} (7. Bxb5+ $16 axb5 8. dxc5 )Bxe2 {[%emt 0:1:45]} 8. Qxe2 {[%emt 0:0:6]} Nc6 {[%emt 0:0:30] The position is equal.} 9. h4 {[%emt 0:2:58]} cxd4 {[%emt 0:1:7]} 10. cxd4 {[%emt 0:0:17]} Nge7 {[%emt 0:0:20]} 11. h5 {[%emt 0:1:58]} Nf5 {[%emt 0:1:42]} 12. Rd1 {[%emt 0:3:6]} Rc8 {[%emt 0:1:40][%cal Oc6d4] Threatens to win with ...Ncxd4!} 13. Nc3 {[%emt 0:1:0]} h6 {[%emt 0:3:33]} 14. Be3 {[%emt 0:4:31]} Bb4 {[%emt 0:1:41]} 15. Rac1 {[%emt 0:1:33]} O-O {[%emt 0:0:25]} 16. Ne1 {[%emt 0:8:29]} (16. Bf4 $11 {remains equal.} )f6 $1 $17 {[%emt 0:5:53]} 17. Nd3 {[%emt 0:7:8] [#]} Ncxd4 {[%emt 0:10:47]} ({Black should play} 17... fxe5 $1 18. dxe5 Qh4 )18. Bxd4 {[%emt 0:1:52]} Nxd4 {[%emt 0:1:21]} 19. Qg4 {[%emt 0:1:3]} (19. Qe3 $17 {is a better defense.} Bxc3 20. Rxc3 )Bxc3 $2 {[%emt 0:0:42]} ({Better is} 19... Rc4 $19 {...fxe5 would now be deadly.} 20. exf6 (20. Nxb4 fxe5 21. Rxd4 exd4 $17 )Qxf6 )20. bxc3 $11 {[%emt 0:0:57]} Nf5 {[%emt 0:0:33] aiming for ...b5.} 21. c4 {[%emt 0:5:58]} fxe5 {[%emt 0:14:9]} 22. Nxe5 {[%emt 0:2:20]} d4 {[%emt 0:2:29]} 23. Nf3 {[%emt 0:6:17][%cal Rf3d4]} Rc5 {[%emt 0:3:52]} 24. Nxd4 {[%emt 0:3:2]} Nxd4 {[%emt 0:0:26]} 25. Rxd4 {[%emt 0:4:32]} Qf6 {[%emt 0:0:50]} 26. Rf1 {[%emt 0:10:7] [#]} Rxh5 $1 {[%emt 0:8:21]} 27. Qxh5 {[%emt 0:0:59]} (27. Rd7 Rg5 )Qxd4 $15 {[%emt 0:0:12][%mdl 4096] Endgame. KQR-KQR} 28. Qe2 {[%emt 0:0:35]} e5 {[%emt 0:2:4] Black is more active.} 29. Rb1 {[%emt 0:3:36]} Rf7 {[%emt 0:1:56]} 30. Rb3 {[%emt 0:1:15]} ({Don't go for} 30. Rd1 $2 Rxf2 31. Qxf2 Qxd1+ 32. Kh2 Qd4 $19 )e4 {[%emt 0:6:19]} 31. Re3 {[%emt 0:3:7]} Re7 {[%emt 0:2:38]} 32. Qc2 {[%emt 0:6:55]} Re5 {[%emt 0:2:44]} 33. Qb3 {[%emt 0:3:2]} Kh7 {[%emt 0:17:35]} 34. Qxb7 {[%emt 0:6:14]} Qxc4 {[%emt 0:0:25]} 35. Rg3 $2 {[%emt 0:2:27][%mdl 8192] This move loses the game for White.} (35. Qb1 $15 )Qc1+ $19 {[%emt 0:2:34]} ({Inferior is} 35... Qxa2 36. Qxg7# )36. Kh2 {[%emt 0:0:7]} Rh5+ {[%emt 0:0:12]} 37. Rh3 {[%emt 0:0:6]} Qf4+ {[%emt 0:0:15]} 38. Kg1 {[%emt 0:0:9] [#]} Rb5 $1 {[%emt 0:1:33]} 39. Qxa6 {[%emt 0:1:54]} Rb1+ {[%emt 0:0:34]} 40. Qf1 {[%emt 0:0:5]} Rxf1+ {[%emt 0:0:20]} 41. Kxf1 {[%emt 0:50:8] KQ-KR} Qc1+ {[%emt 0:52:11]} 42. Ke2 {[%emt 0:0:6]} Qc2+ {[%emt 0:0:52]} 43. Ke1 {[%emt 0:1:55]} Qb1+ {[%emt 0:0:38]} 44. Ke2 {[%emt 0:0:7]} Qxa2+ {[%emt 0:0:15]} 45. Ke1 {[%emt 0:0:9]} Qb1+ {[%emt 0:0:49]} 46. Ke2 {[%emt 0:0:7]} Qg1 {[%emt 0:0:38]} 47. Rg3 {[%emt 0:0:14]} g5 {[%emt 0:0:32]} 48. f3 {[%emt 0:1:56]} e3 {[%emt 0:0:35] Weighted Error Value: White=0.52/Black=0.15 (very precise) .  Loses game:     	White=1     	---        Missed win:     	---       	Black=1      Mistake:       	White=3     	Black=1      Inaccurate:     	White=7     	Black=2      OK:         	White=5     	Black=11     Best:        	White=1     	Black=2} 0-1

[Event "57th Biel Festival MTO 2024"]
[White "Razafindratsima,Timothe"]
[Black "Gemelli,Romain"]
[Site "Biel"]
[Round "1.25"]
[Annotator "RC"]
[Result "1/2-1/2"]
[Date "2024.07.15"]
[WhiteElo "2445"]
[BlackElo "2101"]
[PlyCount "131"]
[TimeControl "60"]

1. e4 {[%emt 0:0:4]} e5 {[%emt 0:0:8]} 2. Nf3 {[%emt 0:0:9]} Nc6 {[%emt 0:0:6]} 3. Bb5 {[%emt 0:0:10]} a6 {[%emt 0:0:7]} 4. Ba4 {[%emt 0:0:4]} Nf6 {[%emt 0:0:12]} 5. O-O {[%emt 0:0:8]} b5 {[%emt 0:0:5]} 6. Bb3 {[%emt 0:0:4]} Bc5 {[%emt 0:0:8]} 7. c3 {[%emt 0:2:56]} d6 {[%emt 0:0:7]} 8. d4 {[%emt 0:1:11]} Bb6 {[%emt 0:0:8]} 9. Re1 {[%emt 0:0:2]} O-O {[%emt 0:1:0]} 10. Bg5 {[%emt 0:0:12]} h6 {[%emt 0:4:42]} 11. Bh4 {[%emt 0:0:1]} exd4 {[%emt 0:0:24]} 12. Bd5 {[%emt 0:0:49]} Bd7 {[%emt 0:0:46]} 13. cxd4 {[%emt 0:1:36]} g5 {[%emt 0:2:25]} 14. Bxc6 {[%emt 0:1:4]} Bxc6 {[%emt 0:0:7]} 15. Qc1 {[%emt 0:0:10]} Bb7 {[%emt 0:4:21]} 16. Nxg5 {[%emt 0:0:19]} Nxe4 {[%emt 0:0:6]} 17. Nf3 {[%emt 0:0:5]} Qd7 {[%emt 0:0:5]} 18. Qxh6 {[%emt 0:4:38]} f5 {[%emt 0:0:11]} 19. Nc3 {[%emt 0:38:59]} Qg7 {[%emt 0:2:38]} 20. Qxg7+ {[%emt 0:0:9]} Kxg7 {[%emt 0:0:8]} 21. a4 {[%emt 0:0:1]} Rae8 {[%emt 0:35:50]} 22. a5 {[%emt 0:28:0]} Ba7 {[%emt 0:4:21]} 23. Bg5 {[%emt 0:0:4]} c5 {[%emt 0:16:32]} 24. Rad1 {[%emt 0:9:58]} Nxg5 {[%emt 0:14:6]} 25. Nxg5 {[%emt 0:0:1]} cxd4 {[%emt 0:0:10]} 26. Ne2 {[%emt 0:0:0]} Re5 {[%emt 0:3:9]} 27. Nf3 {[%emt 0:0:27]} Bxf3 {[%emt 0:0:0]} 28. gxf3 {[%emt 0:0:1]} Rfe8 {[%emt 0:0:58]} 29. Kf1 {[%emt 0:0:9]} Bc5 {[%emt 0:0:45]} 30. Nf4 {[%emt 0:1:55]} Rxe1+ {[%emt 0:8:0]} 31. Rxe1 {[%emt 0:0:1]} Rxe1+ {[%emt 0:0:14]} 32. Kxe1 {[%emt 0:0:2]} Bb4+ {[%emt 0:0:7]} 33. Ke2 {[%emt 0:0:3]} Bxa5 {[%emt 0:0:23]} 34. Kd3 {[%emt 0:6:29]} Be1 {[%emt 0:1:7]} 35. Ne6+ {[%emt 0:6:32]} Kf6 {[%emt 0:0:47]} 36. Nc7 {[%emt 0:0:2]} Bxf2 {[%emt 0:0:47]} 37. Nxa6 {[%emt 0:0:1]} Ke5 {[%emt 0:3:35]} 38. Nb4 {[%emt 0:0:42]} Bh4 {[%emt 0:4:42]} 39. Ke2 {[%emt 0:3:3]} Bf6 {[%emt 0:1:28]} 40. b3 {[%emt 0:0:16]} Bh4 {[%emt 0:2:12]} 41. Nc2 {[%emt 0:56:46]} Kd5 {[%emt 0:52:1]} 42. Kd3 {[%emt 0:1:14]} Bf2 {[%emt 0:1:14]} 43. f4 {[%emt 0:0:0]} Kc5 {[%emt 0:0:0]} 44. b4+ {[%emt 0:0:0]} Kd5 {[%emt 0:0:0]} 45. h3 {[%emt 0:0:0]} Bg3 {[%emt 0:0:0]} 46. Nxd4 {[%emt 0:0:0]} Bxf4 {[%emt 0:0:0]} 47. h4 {[%emt 0:0:0]} Be5 {[%emt 0:0:0]} 48. Nxb5 {[%emt 0:0:0]} f4 {[%emt 0:0:0]} 49. Nc3+ {[%emt 0:0:0]} Kc6 {[%emt 0:0:0]} 50. h5 {[%emt 0:0:41]} f3 {[%emt 0:0:0]} 51. Nd1 {[%emt 0:2:42]} Kb5 {[%emt 0:0:0]} 52. Ke4 {[%emt 0:1:43]} Kxb4 {[%emt 0:0:0]} 53. h6 {[%emt 0:2:25]} Kc5 {[%emt 0:0:0]} 54. Nf2 {[%emt 0:0:46]} Bh8 {[%emt 0:0:0]} 55. Ng4 {[%emt 0:0:32]} d5+ {[%emt 0:0:0]} 56. Kxf3 {[%emt 0:0:2]} Kd6 {[%emt 0:0:0]} 57. Kf4 {[%emt 0:0:1]} d4 {[%emt 0:0:0]} 58. Kf5 {[%emt 0:0:21]} d3 {[%emt 0:0:0]} 59. Nf2 {[%emt 0:0:13]} Ke7 {[%emt 0:0:0]} 60. Nxd3 {[%emt 0:1:23]} Kf7 {[%emt 0:0:0]} 61. Nc5 {[%emt 0:5:49]} Bg7 {[%emt 0:0:0]} 62. h7 {[%emt 0:0:6]} Bd4 {[%emt 0:0:0]} 63. Ne6 {[%emt 0:0:8]} Bc3 {[%emt 0:0:0]} 64. Nc7 {[%emt 0:1:19]} Kg7 {[%emt 0:0:0]} 65. Nd5 {[%emt 0:0:2]} Kxh7 {[%emt 0:0:0]} 66. Nxc3 {[%emt 0:0:2]} 1/2-1/2

[Event "57th Biel Festival MTO 2024"]
[White "Kaiser,Elmar"]
[Black "Fromm,Marius"]
[Site "Biel"]
[Round "1.26"]
[Annotator "TA"]
[Result "0-1"]
[Date "2024.07.15"]
[WhiteElo "2116"]
[BlackElo "2465"]
[PlyCount "94"]
[TimeControl "60"]

{[%evp 12,94,41,36,30,48,35,34,31,18,66,21,27,15,37,25,30,-10,0,-28,-41,-23,-17,-37,10,-19,0,0,0,0,13,-32,-19,-52,-47,-92,-88,-121,-79,-78,-65,-117,-93,-99,-102,-98,-104,-107,-103,-107,-87,-100,-74,-74,-75,-91,-43,-115,-101,-177,-142,-438,-412,-480,-483,-700,-581,-1053,-1029,-1028,-1072,-1061,-1062,-997,-948,-2529,-1949,-2580,-2280,-29989,-29990,-29990,-29991,-29991,-29992]} 1. e4 {[%emt 0:1:29]} c5 {[%emt 0:0:8]} 2. Nf3 {[%emt 0:0:13]} e6 {[%emt 0:0:26]} 3. d4 {[%emt 0:0:30]} cxd4 {[%emt 0:0:5]} 4. Nxd4 {[%emt 0:0:5]} Nf6 {[%emt 0:0:4]} 5. Nc3 {[%emt 0:0:15]} Nc6 {[%emt 0:0:4]} 6. Ndb5 {[%emt 0:1:13]} Bc5 {[%emt 0:0:6]} 7. Bf4 {[%emt 0:2:12]} (7. Nd6+ {hält die Spannung aufrecht.} Ke7 8. Bf4 e5 9. Nf5+ )O-O {[%emt 0:0:9]} 8. Bc7 {[%emt 0:8:24]} Qe7 {[%emt 0:0:6] [#] Und jetzt ...d5 wäre schön.} 9. Bd6 $1 {[%emt 0:0:31]} Bxd6 {[%emt 0:0:5] Weiß steht etwas besser.} 10. Qxd6 {[%emt 0:1:20]} Qd8 {[%emt 0:0:5]} (10... Ne8 $11 {ist überlegen.} 11. Qxe7 Nxe7 )11. Be2 {[%emt 0:5:35]} (11. Nc7 $5 Ne8 12. Nxe8 Rxe8 13. Bc4 $14 )a6 {[%emt 0:1:20]} 12. Nd4 {[%emt 0:2:42]} Ne7 {[%emt 0:0:34]} 13. O-O-O {[%emt 0:9:38]} b5 {[%emt 0:1:52]} 14. g4 {[%emt 0:3:45]} Ne8 {[%emt 0:0:47]} 15. Qg3 {[%emt 0:4:23]} b4 $1 {[%emt 0:0:16]} 16. Nb1 {[%emt 0:2:26]} Bb7 {[%emt 0:0:58]} 17. Nd2 {[%emt 0:1:51]} Rc8 {[%emt 0:6:41]} (17... Nf6 $15 {ist eher angebracht.} )18. Kb1 {[%emt 0:1:43]} d6 {[%emt 0:4:53]} 19. h4 {[%emt 0:5:20]} Qc7 {[%emt 0:2:30]} 20. Bd3 {[%emt 0:2:26]} a5 {[%emt 0:0:38]} 21. Rc1 {[%emt 0:5:28]} (21. h5 {ist interessant.} a4 22. g5 Qc5 23. h6 )a4 {[%emt 0:5:49]} 22. c4 {[%emt 0:1:18]} Qc5 {[%emt 0:3:11]} 23. Qe3 {[%emt 0:4:15]} Nf6 $36 {[%emt 0:2:11][%mdl 2048] Weiss muss aufpassen.} 24. f3 {[%emt 0:5:4]} e5 {[%emt 0:4:16]} 25. Nc2 {[%emt 0:1:6]} Qa5 {[%emt 0:0:5]} 26. Qe1 {[%emt 0:5:6]} (26. Nf1 $15 )Nc6 $17 {[%emt 0:2:2] Schwarz steht aktiver.} 27. Ne3 {[%emt 0:5:16][%cal Oc4c5]} Nd7 {[%emt 0:1:1]} 28. Nf5 {[%emt 0:3:34][%cal Oc4c5]} Nc5 {[%emt 0:0:20]} 29. Qe3 {[%emt 0:1:49]} Rc7 {[%emt 0:3:41]} 30. Be2 {[%emt 0:2:6][%cal Of5g7]} Rd8 {[%emt 0:11:5]} 31. Nf1 {[%emt 0:4:48]} Ne6 {[%emt 0:6:5][%cal Ob4b3]} (31... Bc8 {scheint wilder zu sein.} 32. h5 Nb3 33. Rd1 Nbd4 )32. N1g3 {[%emt 0:1:8]} Qc5 {[%emt 0:1:24]} 33. Qd2 {[%emt 0:0:41]} Ncd4 {[%emt 0:1:36]} (33... Bc8 $17 )34. Nh5 {[%emt 0:4:42]} ({Günstiger ist} 34. Nxd4 $15 Nxd4 35. Nf5 )f6 {[%emt 0:2:17]} 35. Ne3 {[%emt 0:10:9]} (35. Rhd1 $17 )Qb6 {[%emt 0:4:17][%cal Od4b3] Weiss muss nun ...Nb3! beachten.} 36. Nd5 $2 {[%emt 0:1:9][%mdl 8192] Verliert die Partie.} (36. Nf5 $17 )Bxd5 $19 {[%emt 0:0:9]} 37. exd5 {[%emt 0:0:12]} Nc5 {[%emt 0:0:25] Hervorragende Reitkunst.} 38. Qe3 {[%emt 0:2:9]} (38. Qd1 $142 Qa6 39. Nf4 )Ra8 {[%emt 0:4:4] ...a3 wäre nun fies.} 39. Bd3 {[%emt 0:1:50]} a3 {[%emt 0:1:49] Droht stark ...b3.} 40. b3 {[%emt 0:1:57] [#]} Ndxb3 $1 {[%emt 0:9:13][%mdl 512]} 41. axb3 {[%emt 0:2:53]} a2+ {[%emt 0:0:4]} 42. Kc2 {[%emt 0:0:11]} Ra3 {[%emt 0:0:17]} 43. Bf5 {[%emt 0:8:20]} Rxb3 {[%emt 0:1:37]} 44. Qg1 {[%emt 0:8:51]} Rc3+ {[%emt 0:1:18]} 45. Kb2 {[%emt 0:0:26]} Qa5 {[%emt 0:0:30] Schwarz setzt Matt.} 46. Rxc3 {[%emt 0:2:34]} bxc3+ {[%emt 0:0:4]} 47. Kc2 {[%emt 0:0:17]} Rb7 {[%emt 0:0:3] Gewichteter Fehlerwert: Weiß=1.01/Schwarz=0.13 (sehr präzise) .  Verlustzug:     	Weiß=1     	---        Fehler:       	Weiß=4     	Schwarz=3     Ungenau:       	Weiß=9     	Schwarz=1     OK:         	Weiß=13    	Schwarz=13    Bester:       	---       	Schwarz=1     Stark:        	Weiß=1     	Schwarz=1} 0-1

[Event "57th Biel Festival MTO 2024"]
[White "Saraci,Nderim"]
[Black "Smirnov,Mark"]
[Site "Biel"]
[Round "1.27"]
[Annotator "TA"]
[Result "0-1"]
[Date "2024.07.15"]
[WhiteElo "2449"]
[BlackElo "2203"]
[PlyCount "48"]
[TimeControl "60"]

{[%evp 17,48,0,0,-23,-26,-28,-19,-54,-48,-58,-56,-50,-44,-98,-71,-86,-87,-82,-66,-235,-216,-228,-235,-354,-363,-340,-338,-538,-556,-556,-564,-800,-531]} 1. Nf3 {[%emt 0:0:5]} Nf6 {[%emt 0:0:8]} 2. d4 {[%emt 0:0:20]} e6 {[%emt 0:0:9]} 3. c4 {[%emt 0:0:38]} d5 {[%emt 0:0:11]} 4. g3 {[%emt 0:0:31]} Bb4+ {[%emt 0:2:6]} 5. Bd2 {[%emt 0:0:38]} Be7 {[%emt 0:0:10]} 6. Bg2 {[%emt 0:2:0]} O-O {[%emt 0:0:37]} 7. O-O {[%emt 0:0:26]} c6 {[%emt 0:0:5]} 8. Qc2 {[%emt 0:4:11]} Nbd7 {[%emt 0:1:40]} 9. b3 {[%emt 0:2:34]} b6 {[%emt 0:2:32]} 10. Nc3 {[%emt 0:15:25]} Ba6 {[%emt 0:10:1]} 11. e4 {[%emt 0:21:39]} dxc4 {[%emt 0:1:32]} 12. bxc4 {[%emt 0:2:15] The position is equal.} Bxc4 {[%emt 0:0:59]} 13. Rfd1 {[%emt 0:1:3]} b5 {[%emt 0:12:37]} 14. Bf4 {[%emt 0:2:21]} b4 {[%emt 0:3:26]} 15. Nb1 {[%emt 0:13:47]} (15. Nd2 $15 Ba6 16. Na4 )Bb5 $17 {[%emt 0:2:49]} 16. a4 {[%emt 0:1:10] [#]} Ba6 {[%emt 0:2:42]} 17. Nbd2 {[%emt 0:14:12]} c5 {[%emt 0:7:1]} 18. d5 $2 {[%emt 0:2:58]} exd5 $19 {[%emt 0:2:19]} 19. exd5 {[%emt 0:0:5]} Nxd5 {[%emt 0:4:5]} 20. Ne5 {[%emt 0:3:16]} (20. Qf5 {was called for.} Nxf4 21. Qxf4 )Nxf4 {[%emt 0:4:23]} 21. gxf4 {[%emt 0:1:37]} Nxe5 {[%emt 0:0:33]} 22. Bxa8 {[%emt 0:0:36]} (22. fxe5 $142 Rb8 23. Nc4 )Bd3 {[%emt 0:5:47] White is weak on the dark squares. Black is clearly winning.} 23. Qb2 {[%emt 0:3:3]} Ng6 {[%emt 0:7:49]} 24. Qb3 {[%emt 0:8:20]} c4 {[%emt 0:2:56] Black took control after the opening.   Weighted Error Value: White=0.72/Black=0.01 (flawless) .  Loses game:     	White=1     	---        Mistake:       	White=3     	---        Inaccurate:     	White=2     	Black=1      OK:         	White=2     	Black=7      Best:        	White=1     	Black=4} 0-1

[Event "57th Biel Festival MTO 2024"]
[White "Erne,Raphael"]
[Black "Petkidis,Anthony"]
[Site "Biel"]
[Round "1.28"]
[Annotator "TA"]
[Result "1/2-1/2"]
[Date "2024.07.15"]
[WhiteElo "2102"]
[BlackElo "2427"]
[PlyCount "62"]
[TimeControl "60"]

{[%evp 10,62,14,-1,15,23,47,42,48,38,57,45,69,68,73,77,91,43,85,29,55,0,0,-5,-11,-4,0,0,10,0,0,0,7,-11,-12,0,-6,-8,-7,-15,0,0,0,-16,-10,-13,0,0,0,-11,-14,-16,0,0,10]} 1. c4 {[%emt 0:0:6]} Nf6 {[%emt 0:0:20]} 2. g3 {[%emt 0:0:14]} e6 {[%emt 0:0:18]} 3. Bg2 {[%emt 0:0:15]} d5 {[%emt 0:0:11]} 4. Nf3 {[%emt 0:0:16]} Be7 {[%emt 0:0:6]} 5. d4 {[%emt 0:0:11]} O-O {[%emt 0:0:12]} 6. Qc2 {[%emt 0:0:15]} a5 {[%emt 0:4:18]} 7. O-O {[%emt 0:7:14]} Nc6 {[%emt 0:0:12][%cal Bb8c6,Bc6d8,Bd8e6,Be6f4][%mdl 32]} 8. a3 {[%emt 0:11:49]} a4 {[%emt 0:2:4] White is slightly better.} 9. cxd5 {[%emt 0:9:8]} exd5 {[%emt 0:2:4]} 10. Nc3 {[%emt 0:0:19][%cal Oc1f4] Prevents Ne4} Bd7 {[%emt 0:11:21]} 11. Bf4 {[%emt 0:7:58]} ({Of course not} 11. Nxa4 Nxd4 12. Nxd4 Bxa4 $11 )Qc8 {[%emt 0:14:39]} 12. Rac1 {[%emt 0:10:29]} ({But not} 12. Nxa4 Nxd4 13. Nxd4 Rxa4 $11 )Nd8 {[%emt 0:11:56]} 13. Ne5 {[%emt 0:3:45]} (13. Bg5 $16 {Threatens to win with Bxf6.} c6 14. Qd1 (14. Nxa4 Bf5 $16 ))Ra5 {[%emt 0:7:28]} 14. Qd2 {[%emt 0:17:59] White is much more active. The black rooks are passive.} (14. Bd2 $16 )Ne6 {[%emt 0:18:34] [#]} 15. Ne4 {[%emt 0:12:22]} Nxf4 $11 {[%emt 0:5:22] The position is equal.} 16. Nxf6+ {[%emt 0:3:12]} Bxf6 {[%emt 0:1:21]} 17. Qxf4 {[%emt 0:5:2]} Be6 {[%emt 0:1:8]} 18. Nd3 {[%emt 0:1:41]} c6 {[%emt 0:0:56]} 19. Qd2 {[%emt 0:0:54]} Ra7 {[%emt 0:1:26]} 20. e3 {[%emt 0:1:22]} Bh3 {[%emt 0:2:4]} 21. Qb4 {[%emt 0:1:16]} Bxg2 {[%emt 0:1:26]} 22. Kxg2 {[%emt 0:0:7]} Re8 {[%emt 0:0:43]} 23. Nc5 {[%emt 0:1:51]} Be7 {[%emt 0:0:30]} 24. Qd2 {[%emt 0:2:57]} Bd6 {[%emt 0:2:6]} 25. Qc2 {[%emt 0:1:45]} Bxc5 {[%emt 0:2:2]} 26. Qxc5 {[%emt 0:0:13]} Ra8 {[%emt 0:0:12]} 27. Qc2 {[%emt 0:3:29]} Re4 {[%emt 0:1:6]} 28. Qd2 {[%emt 0:1:30]} Re6 {[%emt 0:2:14]} 29. h4 {[%emt 0:1:8]} Rf6 {[%emt 0:1:4]} 30. Rc5 {[%emt 0:1:22]} h5 {[%emt 0:5:35]} 31. Ra5 {[%emt 0:1:46]} g6 {[%emt 0:4:51] Weighted Error Value: White=0.10 (very precise) /Black=0.10 (very precise) .  Mistake:       	White=3     	---        Inaccurate:     	---       	Black=2      OK:         	White=10    	Black=6      Best:        	White=1     	---} 1/2-1/2